bitfinex-derivatives/quotes_SOLF0:USTF0_20250530
["timestamp","ask_amount","ask_price","bid_price","bid_amount"]
[1748647293004,6.43155637,156.57,156.54,0.04721281]
[1748647293210,0.04635637,156.57,156.54,0.04721281]
[1748647297010,0.04635637,156.57,156.55,6.3856]
[1748647297213,0.04635637,156.57,156.54,0.04721281]
[1748647297414,0.04635637,156.57,156.56,6.3855]
[1748647297609,0.04635637,156.57,156.54,0.04721281]
[1748647297610,551.82,156.65,156.54,0.04721281]
[1748647297808,2.031,156.67,156.54,49.64]
[1748647298004,2.031,156.67,156.55,6.218]
[1748647298211,49.64,156.68,156.55,6.218]
[1748647298516,51.8047,156.73,156.58,18.76383818]
[1748647298715,0.04808603,156.67,156.66,6.3811]
[1748647299019,0.04878091,156.68,156.65,0.04465643]
[1748647299208,0.04701454,156.68,156.65,0.04403982]
[1748647300515,0.04701454,156.68,156.67,6.3811]
[1748647301218,0.04701454,156.68,156.65,0.04403982]
[1748647302118,6.3813,156.67,156.65,0.04403982]
[1748647302315,0.04701454,156.68,156.65,0.04403982]
[1748647304017,0.04701454,156.68,156.56,49.62]
[1748647304215,49.62,156.69,156.56,49.62]
[1748647304411,18.73452351,156.68,156.56,49.62]
[1748647304623,18.73489372,156.68,156.56,49.62]
[1748647305121,49.62,156.69,156.52,551.7]
[1748647305122,0.04042198,156.64,156.52,551.7]
[1748647305424,0.04597967,156.6,156.56,0.04805556]
[1748647307316,0.04597967,156.6,156.59,6.3843]
[1748647308425,6.3812,156.67,156.57,51.7972]
[1748647308621,49.62,156.69,156.58,2.209]
[1748647309420,0.04791835,156.65,156.64,6.3823]
[1748647309623,0.04791835,156.65,156.62,0.04778469]
[1748647310023,6.43001835,156.65,156.62,0.04778469]
[1748647310224,0.04791835,156.65,156.62,0.04778469]
[1748647311120,0.04791835,156.65,156.52,605.4699]
[1748647311327,2.1275,156.65,156.52,605.4699]
[1748647311527,2.1275,156.65,156.56,6.3853]
[1748647311717,2.0143,156.64,156.52,53.7699]
[1748647311922,2.0143,156.64,156.52,51.7648]
[1748647311923,22.80297379,156.64,156.52,51.7648]
[1748647312121,0.04595812,156.6,156.56,0.04570929]
[1748647312425,49.66595812,156.6,156.47,51.6251]
[1748647312630,49.62,156.6,156.47,51.6251]
[1748647312825,68.37362788,156.6,156.47,51.6251]
[1748647313128,68.37362788,156.6,156.46,6.3893]
[1748647313129,6.3883,156.5,156.46,6.3893]
[1748647313332,0.04397521,156.5,156.46,0.04729572]
[1748647313730,0.04397521,156.5,156.49,6.3884]
[1748647314230,0.04397521,156.5,156.46,6.43689572]
[1748647314530,0.04397521,156.5,156.46,0.04729572]
[1748647315728,2.2019,156.57,156.46,0.04729572]
[1748647315932,2.2019,156.57,156.45,49.62]
[1748647316726,0.04346075,156.53,156.49,0.04803111]
[1748647317630,0.04346075,156.53,156.52,6.3871]
[1748647318834,0.04346075,156.53,156.51,6.3875]
[1748647319128,0.04346075,156.53,156.49,0.04803111]
[1748647319327,0.04346075,156.53,156.5,6.3877]
[1748647319735,0.04346075,156.53,156.49,0.04803111]
[1748647320327,0.04346075,156.53,156.45,6.39]
[1748647320328,49.68346075,156.53,156.45,6.39]
[1748647320637,68.45448631,156.53,156.4,49.64]
[1748647320827,18.77728121,156.5,156.35,55.7972]
[1748647321230,2.0036,156.49,156.35,55.7972]
[1748647321432,0.04257637,156.44,156.4,0.04837921]
[1748647321627,48.0,156.43,156.29,48.0]
[1748647321832,48.0,156.43,156.3,2.0734]
[1748647321833,6.3936,156.37,156.3,2.0734]
[1748647322034,6.3936,156.37,156.33,6.3948]
[1748647322337,6.3926,156.39,156.3,2.0734]
[1748647322537,0.0466939,156.36,156.33,0.04199038]
[1748647322739,0.0466939,156.36,156.35,6.3938]
[1748647323037,0.0466939,156.36,156.33,0.04199038]
[1748647323429,0.0466939,156.36,156.24,48.0]
[1748647323430,6.3961,156.31,156.24,48.0]
[1748647323640,66.80837714,156.37,156.24,48.0]
[1748647323840,48.0,156.37,156.24,48.0]
[1748647324343,0.04450026,156.32,156.29,0.04259589]
[1748647324547,4.3571,156.4,156.29,0.04259589]
[1748647324745,2.1696,156.4,156.38,6.3927]
[1748647324940,6.3913,156.42,156.31,18.80837714]
[1748647325144,50.1894,156.43,156.31,18.80837714]
[1748647325446,6.3918,156.41,156.31,18.80837714]
[1748647325649,0.04497166,156.38,156.34,0.04266773]
[1748647326542,4.377,156.48,156.34,0.04266773]
[1748647326743,4.377,156.48,156.35,18.78965121]
[1748647326744,52.397,156.48,156.35,18.78965121]
[1748647326943,52.397,156.48,156.36,48.02]
[1748647327550,58.7861,156.48,156.44,6.3904]
[1748647327738,0.04115129,156.48,156.37,4.318]
[1748647327939,48.02,156.51,156.44,0.04896577]
[1748647328251,0.04134075,156.48,156.44,0.04896577]
[1748647328648,6.39,156.45,156.44,0.04896577]
[1748647328851,0.04134075,156.48,156.37,4.318]
[1748647329049,2.1382,156.5,156.37,4.318]
[1748647329645,2.1382,156.5,156.39,6.3923]
[1748647329845,0.04284667,156.46,156.42,0.04488036]
[1748647330239,6.391,156.43,156.42,0.04488036]
[1748647330443,48.02,156.45,156.34,2.0287]
[1748647330644,2.1847,156.44,156.34,2.0287]
[1748647331243,20.97435121,156.44,156.31,52.0686]
[1748647331442,20.97435121,156.44,156.36,0.04765157]
[1748647331443,0.04827672,156.39,156.36,0.04765157]
[1748647331649,48.06827672,156.39,156.26,50.0487]
[1748647331844,2.0407,156.38,156.26,50.0487]
[1748647332247,2.0407,156.38,156.3,6.3961]
[1748647332546,0.04209588,156.36,156.32,0.04253636]
[1748647332945,6.3949,156.33,156.32,0.04253636]
[1748647334055,0.04209588,156.36,156.32,0.04253636]
[1748647335053,6.3949,156.33,156.32,0.04253636]
[1748647335752,0.04209588,156.36,156.33,6.3948]
[1748647335955,0.04209588,156.36,156.32,0.04253636]
[1748647336253,0.04209588,156.36,156.35,6.3941]
[1748647337055,0.04209588,156.36,156.34,6.3943]
[1748647337246,0.04209588,156.36,156.32,0.04253636]
[1748647337845,6.43609588,156.36,156.32,0.04253636]
[1748647338050,0.04209588,156.36,156.32,0.04253636]
[1748647339159,0.04209588,156.36,156.22,48.04]
[1748647339351,2.1434,156.36,156.22,48.04]
[1748647339553,6.3969,156.29,156.25,6.3979]
[1748647339756,2.2121,156.35,156.22,48.04]
[1748647340258,6.3973,156.28,156.27,0.04508733]
[1748647341561,6.3973,156.28,156.09,48.06]
[1748647341562,25.22180068,156.28,156.09,48.06]
[1748647341857,18.83624189,156.25,156.1,4.2912]
[1748647342053,50.0702,156.24,156.1,4.2912]
[1748647342258,52.0785,156.24,156.13,6.4029]
[1748647342460,0.04126398,156.2,156.17,0.04883404]
[1748647342654,0.04126398,156.2,156.1,4.2912]
[1748647342857,18.83624189,156.21,156.07,50.1723]
[1748647343058,6.4032,156.13,156.07,50.1723]
[1748647343260,48.06,156.17,156.1,6.404]
[1748647343562,0.0469171,156.15,156.12,0.04846943]
[1748647344354,2.62670539,156.21,156.12,0.04846943]
[1748647344559,554.4892,156.27,156.13,48.08]
[1748647344760,2.62756658,156.26,156.13,48.08]
[1748647344961,2.62734421,156.26,156.13,48.08]
[1748647345158,2.62736666,156.26,156.13,66.91624189]
[1748647345357,0.04660924,156.21,156.18,0.04375059]
[1748647346358,0.04660924,156.21,156.2,6.4003]
[1748647346767,0.04660924,156.21,156.18,0.04375059]
[1748647348075,6.44650924,156.21,156.18,0.04375059]
[1748647348369,0.04660924,156.21,156.18,0.04375059]
[1748647349273,0.04660924,156.21,156.2,6.4003]
[1748647349573,0.04660924,156.21,156.18,0.04375059]
[1748647350273,0.04660924,156.21,156.2,6.4003]
[1748647350670,2.2172,156.33,156.2,6.4]
[1748647350877,50.2972,156.33,156.26,6.3977]
[1748647351371,50.2972,156.33,156.19,52.1091]
[1748647351566,0.04671905,156.28,156.24,0.04323556]
[1748647352371,6.3982,156.25,156.24,0.04323556]
[1748647352571,0.04671905,156.28,156.24,0.04323556]
[1748647355771,552.72,156.36,156.24,0.04323556]
[1748647355967,6.3945,156.35,156.25,46.92]
[1748647356162,46.92,156.37,156.25,65.73432605]
[1748647356163,3.73544203,156.34,156.25,65.73432605]
[1748647356368,46.92,156.37,156.26,166.67432605]
[1748647356567,3.73498324,156.36,156.29,6.3965]
[1748647356773,0.04769412,156.34,156.31,0.04911498]
[1748647356972,0.04776331,156.34,156.31,0.04144317]
[1748647357772,6.3949,156.33,156.31,0.04144317]
[1748647357973,0.04776331,156.34,156.24,46.92]
[1748647358177,46.92,156.36,156.24,46.92]
[1748647358673,6.3961,156.31,156.24,46.92]
[1748647358873,46.92,156.36,156.24,46.92]
[1748647359172,0.04256401,156.32,156.28,6.44426345]
[1748647359376,0.04256401,156.32,156.28,0.04756345]
[1748647359771,6.3966,156.29,156.28,0.04756345]
[1748647360275,0.04256401,156.32,156.28,0.04756345]
[1748647361473,6.3966,156.29,156.28,0.04756345]
[1748647361870,0.04256401,156.32,156.21,51.0677]
[1748647362075,2.1815,156.31,156.21,51.0677]
[1748647362483,46.9,156.3,156.21,48.9561]
[1748647363178,0.0473657,156.27,156.24,0.04624583]
[1748647363973,0.0473657,156.27,156.26,6.3978]
[1748647364471,6.3953,156.33,156.24,0.04624583]
[1748647364678,46.9,156.35,156.23,18.79893155]
[1748647364879,2.1519,156.38,156.24,18.79646028]
[1748647365072,2.1519,156.38,156.25,2.0676]
[1748647365487,0.04095001,156.33,156.3,0.048856]
[1748647366086,46.9,156.4,156.3,0.048856]
[1748647366384,599.64,156.45,156.3,18.78261063]
[1748647366580,46.9,156.45,156.3,18.78261063]
[1748647366881,4.2098,156.48,156.31,12.7915]
[1748647367080,0.04231178,156.41,156.38,0.04273478]
[1748647367284,2.0053,156.48,156.38,0.04874297]
[1748647367582,48.9916,156.49,156.37,46.9]
[1748647367782,46.9,156.49,156.38,18.78261063]
[1748647367983,2.0053,156.52,156.48,6.3888]
[1748647367984,6.3872,156.52,156.48,6.3888]
[1748647368281,0.04238765,156.52,156.48,0.04283554]
[1748647369078,6.3877,156.51,156.48,0.04283554]
[1748647369283,0.04238765,156.52,156.48,0.04283554]
[1748647369783,6.3884,156.49,156.48,0.04283554]
[1748647369988,46.9,156.5,156.36,46.9]
[1748647370178,46.9,156.5,156.37,6.3932]
[1748647370380,5.75833309,156.49,156.37,6.3932]
[1748647370680,5.76241538,156.49,156.36,46.9]
[1748647370985,0.04200138,156.44,156.41,0.04618599]
[1748647371373,6.3913,156.42,156.41,0.04618599]
[1748647373087,6.3909,156.43,156.41,0.04618599]
[1748647373679,6.3913,156.42,156.41,0.04618599]
[1748647373880,46.92200138,156.44,156.34,2.1171]
[1748647374074,2.0211,156.43,156.31,49.0452]
[1748647374780,6.3944,156.35,156.31,53.2756]
[1748647374977,6.43503066,156.35,156.31,53.31642625]
[1748647375183,6.43503066,156.35,156.31,0.04082625]
[1748647375184,6.3953,156.32,156.31,0.04082625]
[1748647376289,2.1795,156.34,156.31,0.04082625]
[1748647377189,6.3953,156.32,156.31,0.04082625]
[1748647378092,0.04063066,156.35,156.31,0.04082625]
[1748647378592,6.3952,156.33,156.31,0.04082625]
[1748647379090,0.04063066,156.35,156.31,0.04082625]
[1748647381687,0.04063066,156.35,156.33,6.3948]
[1748647382280,0.04063066,156.35,156.34,6.3945]
[1748647382685,0.04063066,156.35,156.31,0.04082625]
[1748647383589,6.3949,156.34,156.31,0.04082625]
[1748647383894,0.04063066,156.35,156.31,0.04082625]
[1748647384288,45.64,156.34,156.21,2.034]
[1748647384493,66.60756312,156.34,156.21,2.034]
[1748647384797,47.7917,156.34,156.21,2.034]
[1748647385388,0.04524169,156.29,156.26,0.04461116]
[1748647385785,0.04524169,156.29,156.27,6.3971]
[1748647385986,0.04524169,156.29,156.26,0.04461116]
[1748647386490,6.4079,156.4,156.27,18.81586312]
[1748647386792,6.4079,156.4,156.28,2.0778]
[1748647386994,6.3932,156.38,156.34,6.3943]
[1748647387394,6.4350826,156.38,156.34,6.43767719]
[1748647387591,6.4350826,156.38,156.34,0.04347719]
[1748647387793,0.0418826,156.38,156.34,0.04347719]
[1748647388294,4.2858,156.46,156.34,0.04347719]
[1748647388590,2.1197,156.46,156.35,18.81586312]
[1748647388787,2.1197,156.46,156.35,164.67586312]
[1748647389183,45.64,156.48,156.35,164.67586312]
[1748647389384,0.0478848,156.43,156.4,0.04428166]
[1748647389590,0.0478848,156.43,156.42,6.3913]
[1748647389992,6.3887,156.49,156.4,0.04428166]
[1748647390189,6.3887,156.49,156.45,6.3897]
[1748647390393,2.1661,156.51,156.4,2.0246]
[1748647390794,6.389,156.48,156.4,2.0246]
[1748647390990,0.0447574,156.46,156.42,0.04738375]
[1748647391200,0.0447574,156.46,156.44,6.3902]
[1748647391395,0.0447574,156.46,156.42,0.04738375]
[1748647391895,6.3923,156.4,156.36,6.3935]
[1748647392095,2.1178,156.45,156.34,47.8179]
[1748647392295,6.3928,156.39,156.35,6.394]
[1748647392487,2.1178,156.45,156.34,45.64]
[1748647392488,2.1061,156.44,156.34,45.64]
[1748647392793,0.04034579,156.41,156.38,6.3925]
[1748647392998,0.04034579,156.41,156.37,0.04177011]
[1748647393191,45.62,156.4,156.3,2.1158]
[1748647393396,6.3945,156.35,156.31,6.3955]
[1748647393604,47.8097,156.4,156.28,45.62]
[1748647393892,6.3946,156.34,156.28,45.62]
[1748647394298,0.04381991,156.33,156.3,0.04596441]
[1748647394499,0.04135264,156.33,156.31,6.3954]
[1748647394696,0.04135264,156.33,156.3,0.04171467]
[1748647396103,0.04135264,156.33,156.32,6.3953]
[1748647396395,0.04135264,156.33,156.3,0.04171467]
[1748647396794,0.04135264,156.33,156.32,6.3953]
[1748647397395,45.62,156.4,156.36,6.3936]
[1748647397597,45.62,156.4,156.28,45.62]
[1748647397797,6.393,156.38,156.28,45.62]
[1748647397998,45.62,156.4,156.28,45.62]
[1748647398194,66.52860319,156.44,156.28,45.62]
[1748647398399,0.04829763,156.38,156.34,0.04271841]
[1748647398592,0.04829763,156.38,156.34,0.04779109]
[1748647399905,3.74625831,156.37,156.28,45.62]
[1748647400108,3.74625831,156.37,156.24,2.1524]
[1748647400109,5.85745831,156.36,156.24,2.1524]
[1748647400301,4.2851,156.36,156.24,2.1524]
[1748647400807,3.74547963,156.35,156.24,2.1524]
[1748647401106,0.04131864,156.31,156.28,0.0418118]
[1748647401300,6.3962,156.3,156.28,0.0418118]
[1748647401494,0.04131864,156.31,156.28,0.0418118]
[1748647401697,6.3966,156.29,156.28,0.0418118]
[1748647401898,0.04131864,156.31,156.23,6.3989]
[1748647402096,45.64,156.32,156.17,45.64]
[1748647402401,3.73587563,156.31,156.19,6.4005]
[1748647402599,18.82040922,156.29,156.17,45.64]
[1748647402901,6.3997,156.22,156.21,0.04088021]
[1748647403105,0.0447628,156.25,156.12,47.6976]
[1748647403306,2.1454,156.25,156.12,47.6976]
[1748647404298,0.04317198,156.2,156.17,0.04708783]
[1748647404498,0.04317198,156.2,156.11,2.1083]
[1748647404499,45.68317198,156.2,156.11,2.1083]
[1748647404808,2.0311,156.19,156.07,45.64]
[1748647404994,6.402,156.16,156.07,45.64]
[1748647405194,2.0311,156.19,156.07,45.64]
[1748647405606,0.04204372,156.15,156.14,6.4024]
[1748647405805,0.04204372,156.15,156.13,0.04693531]
[1748647406103,0.04204372,156.15,156.12,0.04230774]
[1748647407406,6.4031,156.13,156.05,2.0039]
[1748647407710,4.2198,156.19,156.05,2.0039]
[1748647407905,23.0755118,156.19,156.1,6.4043]
[1748647408210,575.7755118,156.19,156.04,2.1091]
[1748647408507,6.4055,156.08,155.99,4.1903]
[1748647408710,0.04115381,156.05,155.99,4.1903]
[1748647409013,0.04115381,156.05,156.04,6.4068]
[1748647409216,18.86739318,156.2,156.03,18.86739318]
[1748647409410,52.062,156.16,156.03,64.52739318]
[1748647409608,45.66,156.16,156.03,45.66]
[1748647409809,45.66,156.16,156.03,64.52739318]
[1748647410013,45.68,156.22,156.07,18.86739318]
[1748647410209,0.04395322,156.16,156.13,0.04219348]
[1748647410605,0.04395322,156.16,156.15,6.4023]
[1748647411317,0.04395322,156.16,156.13,0.04219348]
[1748647412604,5.322e-05,156.16,156.13,0.04219348]
[1748647412804,5.322e-05,156.16,156.15,6.4023]
[1748647413005,2.0025,156.27,156.15,18.8388532]
[1748647413812,2.0025,156.27,156.24,6.3983]
[1748647414016,0.04248386,156.27,156.24,6.44002357]
[1748647414216,0.04248386,156.27,156.24,0.04172357]
[1748647414418,0.04248386,156.27,156.26,6.3978]
[1748647415118,0.04248386,156.27,156.24,0.04172357]
[1748647415718,0.04248386,156.27,156.25,6.3982]
[1748647416315,0.04248386,156.27,156.24,0.04172357]
[1748647416722,6.3978,156.26,156.24,0.04172357]
[1748647417020,0.04248386,156.27,156.24,0.04172357]
[1748647417918,44.46,156.26,156.13,599.5615]
[1748647418116,6.4001,156.21,156.13,599.5615]
[1748647418415,2.1293,156.25,156.13,599.5615]
[1748647418622,2.1293,156.25,156.13,618.38677363]
[1748647418815,0.04840163,156.21,156.17,0.04123166]
[1748647419618,2.0252,156.3,156.17,18.87244254]
[1748647419813,2.0252,156.3,156.18,4.2562]
[1748647420020,6.3968,156.29,156.24,6.3983]
[1748647420613,0.04379183,156.28,156.25,0.04850733]
[1748647422124,6.3978,156.26,156.25,0.04850733]
[1748647423525,0.04379183,156.28,156.18,4.2562]
[1748647423726,5.72272006,156.3,156.18,4.2562]
[1748647423919,6.3998,156.22,156.18,4.2562]
[1748647424125,6.3998,156.22,156.15,44.46]
[1748647424126,44.46,156.24,156.15,6.4022]
[1748647424321,0.04337815,156.21,156.18,0.04862422]
[1748647425017,6.4007,156.19,156.18,0.04862422]
[1748647425224,0.04337815,156.21,156.18,0.04862422]
[1748647426222,6.4006,156.2,156.18,0.04862422]
[1748647426419,0.04337815,156.21,156.18,0.04862422]
[1748647428622,6.4006,156.19,156.18,0.04862422]
[1748647429425,44.50337815,156.21,156.11,44.46]
[1748647429615,44.46,156.21,156.11,44.46]
[1748647429823,44.46,156.21,156.08,44.46]
[1748647430126,4.2042,156.2,156.08,44.46]
[1748647430322,6.4031,156.13,156.12,0.04767476]
[1748647430722,44.46,156.15,156.06,6.4057]
[1748647430922,6.4047,156.1,156.05,2.0723]
[1748647431221,44.46,156.15,156.02,2.2004]
[1748647431619,0.04561326,156.1,156.07,0.04532265]
[1748647431925,0.04561326,156.1,156.01,4.1104]
[1748647432127,0.04561326,156.1,156.01,2.0723]
[1748647432324,44.46,156.09,156.0,44.46]
[1748647432526,44.46,156.09,155.95,552.84]
[1748647432527,65.41630169,156.09,155.89,44.46]
[1748647432729,65.41630169,156.09,155.96,6.4098]
[1748647432922,6.4087,156.0,155.9,6.1211]
[1748647433128,44.46,156.03,155.9,24.98920169]
[1748647433329,0.04142199,155.97,155.96,6.4101]
[1748647433624,0.0421206,155.98,155.9,24.98920169]
[1748647433829,0.0421206,155.98,155.97,6.4097]
[1748647434031,44.46,156.05,155.94,18.86810169]
[1748647434233,44.46,156.05,155.91,44.48]
[1748647434428,44.46,156.05,155.9,6.1211]
[1748647434730,2.1805,156.04,155.9,6.1211]
[1748647434931,6.4085,156.0,155.96,6.41]
[1748647435230,0.04886629,156.0,155.96,0.04181911]
[1748647436030,6.4097,155.97,155.96,0.04181911]
[1748647436231,44.48,155.99,155.96,0.04181911]
[1748647436421,0.04886629,156.0,155.96,0.04181911]
[1748647436623,0.04886629,156.0,155.99,6.4088]
[1748647437228,46.5882,156.09,155.96,0.04181911]
[1748647437428,46.5882,156.09,155.95,18.86732952]
[1748647438029,46.5882,156.09,155.96,18.86380215]
[1748647438224,0.04902624,156.04,156.03,6.4072]
[1748647438425,0.04516406,156.05,156.02,0.04525717]
[1748647438927,0.04516406,156.05,156.04,6.4068]
[1748647439131,46.6867,156.14,156.02,0.04525717]
[1748647439427,44.5,156.18,156.06,18.85008134]
[1748647439632,44.5,156.18,156.06,44.5]
[1748647440027,0.04308607,156.14,156.1,0.04109177]
[1748647440330,0.04308607,156.14,156.13,6.4031]
[1748647440729,0.04308607,156.14,156.11,2.0125]
[1748647440926,0.04308607,156.14,156.13,6.4031]
[1748647442124,44.42,156.25,156.13,6.4]
[1748647442322,44.42,156.25,156.12,44.42]
[1748647443133,0.04053156,156.2,156.17,0.04251737]
[1748647443733,44.42,156.19,156.08,597.74]
[1748647443932,63.25086617,156.19,156.04,44.42]
[1748647444632,0.04148812,156.13,156.1,0.04927153]
[1748647444830,6.4042,156.11,156.1,0.04927153]
[1748647445035,44.46148812,156.13,156.02,4.2996]
[1748647445239,44.42,156.13,156.02,4.2996]
[1748647445432,6.4055,156.08,156.02,4.2996]
[1748647445934,0.04743832,156.07,156.03,0.04891934]
[1748647446132,0.04743832,156.07,156.03,0.04422427]
[1748647446336,44.4,156.17,156.03,6.44422427]
[1748647446537,6.4031,156.13,156.09,6.4044]
[1748647446737,44.4,156.18,156.02,48.6996]
[1748647446942,63.23086617,156.18,156.02,48.6996]
[1748647447136,2.0298,156.17,156.02,48.6996]
[1748647447336,0.04598659,156.11,156.08,0.04928217]
[1748647447538,6.4043,156.1,156.08,0.04928217]
[1748647447737,0.04598659,156.11,156.08,0.04928217]
[1748647447932,6.4047,156.09,156.08,0.04928217]
[1748647448132,0.04598659,156.11,156.0,2.0976]
[1748647448335,2.0115,156.11,155.95,44.4]
[1748647448742,2.0539,156.1,155.95,44.4]
[1748647448941,20.88476617,156.1,155.95,44.4]
[1748647449149,0.04876074,156.04,156.01,0.04500384]
[1748647451745,0.04876074,156.04,156.03,6.4072]
[1748647452045,2.0115,156.11,156.01,0.04500384]
[1748647452249,6.4046,156.1,156.05,6.4061]
[1748647452541,2.0115,156.11,155.99,6.226]
[1748647453147,0.04715354,156.07,156.03,0.0481658]
[1748647453841,0.04715354,156.07,156.06,6.4059]
[1748647454537,46.5277,156.16,156.03,0.0481658]
[1748647454749,46.4576,156.21,156.05,18.8703857]
[1748647454945,6.4019,156.16,156.06,2.1426]
[1748647455147,46.4576,156.21,156.07,46.6389]
[1748647455550,0.04791902,156.16,156.12,0.0435725]
[1748647456746,0.04791902,156.16,156.15,6.4023]
[1748647457248,6.3987,156.24,156.2,6.3999]
[1748647457646,6.3987,156.24,156.15,2.1354]
[1748647457849,2.1104,156.25,156.15,2.1354]
[1748647458347,0.04202866,156.22,156.18,0.04816504]
[1748647458546,0.04202866,156.22,156.2,6.3999]
[1748647458943,0.04202866,156.22,156.21,6.3998]
[1748647459145,0.04202866,156.22,156.18,0.04816504]
[1748647459845,0.04202866,156.22,156.21,6.3998]
[1748647462045,44.42,156.27,156.25,6.3981]
[1748647462249,2.1104,156.31,156.2,44.4]
[1748647462451,6.3964,156.3,156.2,44.4]
[1748647462646,44.4,156.33,156.2,44.4]
[1748647462855,44.4,156.33,156.21,18.8703857]
[1748647463047,0.0452364,156.29,156.25,0.04556613]
[1748647463752,0.0452364,156.29,156.27,6.397]
[1748647464152,0.0452364,156.29,156.25,0.04556613]
[1748647464347,4.219,156.36,156.25,0.04556613]
[1748647464554,44.38,156.37,156.26,44.38]
[1748647464961,597.48,156.41,156.27,2.0005]
[1748647465251,6.395,156.33,156.27,2.0005]
[1748647465447,616.3503857,156.41,156.27,2.0005]
[1748647465651,0.04823359,156.35,156.32,0.04842286]
[1748647465854,44.42823359,156.35,156.32,0.04842286]
[1748647466057,6.3949,156.33,156.32,0.04842286]
[1748647466446,44.42823359,156.35,156.32,0.04842286]
[1748647466853,0.04823359,156.35,156.32,0.04842286]
[1748647467254,6.3946,156.34,156.32,0.04842286]
[1748647467456,0.04823359,156.35,156.32,0.04842286]
[1748647468451,44.38,156.34,156.24,6.3984]
[1748647468750,2.0601,156.33,156.23,2.0697]
[1748647468950,6.3954,156.32,156.27,6.397]
[1748647469150,6.3954,156.32,156.23,2.0697]
[1748647469446,6.395,156.33,156.29,6.3965]
[1748647469651,0.04881911,156.33,156.29,0.04826316]
[1748647472252,6.3974,156.27,156.23,6.3989]
[1748647473046,6.3974,156.27,156.22,46.5345]
[1748647473047,2.0228,156.33,156.22,46.5345]
[1748647473251,0.04420387,156.29,156.26,0.0438742]
[1748647473647,0.04420387,156.29,156.28,6.3969]
[1748647475163,2.1555,156.38,156.32,6.3951]
[1748647475462,6.394,156.36,156.27,45.7164]
[1748647475757,2.1555,156.38,156.32,6.3951]
[1748647475958,2.1555,156.38,156.28,2.1053]
[1748647476159,0.0432035,156.35,156.32,6.395]
[1748647476655,6.3949,156.33,156.31,0.04470477]
[1748647476847,0.0432035,156.35,156.31,0.04470477]
[1748647477758,0.0432035,156.35,156.34,6.3945]
[1748647478162,0.0432035,156.35,156.31,0.04470477]
[1748647478758,6.3931,156.38,156.35,6.394]
[1748647479058,45.6769,156.43,156.27,45.7164]
[1748647479260,6.3947,156.34,156.27,45.7164]
[1748647479466,45.6769,156.43,156.27,45.7164]
[1748647479756,6.3943,156.35,156.33,0.04710339]
[1748647479966,0.04114669,156.37,156.32,0.04286165]
[1748647480155,0.04053495,156.36,156.32,0.04286165]
[1748647480351,6.3947,156.34,156.32,0.04047673]
[1748647480557,0.04053495,156.36,156.32,0.04047673]
[1748647480962,6.3941,156.35,156.32,0.04047673]
[1748647481463,0.04053495,156.36,156.32,0.04047673]
[1748647482064,0.04053495,156.36,156.35,6.3941]
[1748647482467,0.04053495,156.36,156.32,43.68047673]
[1748647484364,0.04053495,156.36,156.35,6.3941]
[1748647484861,0.04053495,156.36,156.32,43.68047673]
[1748647486060,0.04053495,156.36,156.35,6.3941]
[1748647486367,0.04053495,156.36,156.32,43.68047673]
[1748647486562,0.04053495,156.36,156.34,6.3944]
[1748647486760,0.04053495,156.36,156.32,0.04047673]
[1748647487071,0.04053495,156.36,156.28,6.3967]
[1748647487359,6.395,156.33,156.24,43.64]
[1748647487561,4.2655,156.37,156.29,6.3962]
[1748647488162,6.3951,156.33,156.31,0.04577729]
[1748647488370,0.0417226,156.35,156.31,0.04577729]
[1748647489367,0.0417226,156.35,156.34,6.3945]
[1748647491268,43.64,156.46,156.34,62.41619256]
[1748647491466,43.64,156.52,156.36,18.77287907]
[1748647491768,43.64,156.52,156.37,2.1496]
[1748647491769,47.8465,156.52,156.37,2.1496]
[1748647491970,6.389,156.48,156.37,2.1496]
[1748647492171,47.8465,156.52,156.41,0.04279739]
[1748647492365,0.04150108,156.48,156.45,0.04818452]
[1748647492762,6.43050108,156.48,156.45,6.43798452]
[1748647492963,6.43050108,156.48,156.45,0.04818452]